bitfinex-derivatives/quotes_BNBF0:USTF0_20250521
["timestamp","ask_amount","ask_price","bid_price","bid_amount"]
[1747821134255,2.27792281,651.14,650.52,0.61785567]
[1747821134459,2.27792281,651.14,650.53,1.78652804]
[1747821134659,2.27792281,651.14,650.54,0.61785567]
[1747821134860,2.27792281,651.14,650.55,1.78652804]
[1747821135060,2.27792281,651.14,650.56,0.61785567]
[1747821135263,2.27792281,651.17,650.56,1.20531615]
[1747821135463,2.27792281,651.17,650.57,0.61785567]
[1747821135763,2.27792281,651.17,650.58,0.61783193]
[1747821135964,2.27792281,651.17,650.59,0.61782895]
[1747821136166,2.27792281,651.17,650.6,0.61777381]
[1747821136362,2.27792281,651.17,650.61,0.61777381]
[1747821136561,2.27792281,651.17,650.56,0.58746048]
[1747821136759,2.27792281,651.17,650.62,0.58746048]
[1747821137864,2.27792281,651.17,650.63,0.61771644]
[1747821138063,2.27792281,651.17,650.62,0.58746048]
[1747821138265,2.27792281,651.17,650.4,0.65222672]
[1747821138266,2.27792281,651.28,650.64,0.58746048]
[1747821138764,2.27792281,651.28,650.65,0.61765856]
[1747821138958,2.27792281,651.28,650.64,0.58746048]
[1747821139665,2.27792281,651.28,650.44,0.58746048]
[1747821139867,2.27792281,651.28,650.45,0.92484146]
[1747821140066,2.27792281,651.28,650.46,2.09160894]
[1747821140264,2.27792281,651.28,650.47,0.92484146]
[1747821140462,2.27792281,651.28,650.48,0.92484146]
[1747821140663,2.27792281,651.28,650.49,2.09160894]
[1747821140872,2.27792281,651.28,650.5,0.92484146]
[1747821141071,2.27792281,651.28,650.51,2.09160894]
[1747821141266,2.27792281,651.28,650.52,0.92484146]
[1747821141465,2.27792281,651.33,650.53,2.09160894]
[1747821141668,2.27792281,651.33,650.54,0.92484146]
[1747821141868,2.27792281,651.33,650.55,0.92484146]
[1747821142069,2.27792281,651.33,650.56,2.09160894]
[1747821142271,2.27792281,651.33,650.57,0.61767128]
[1747821142470,2.27792281,651.33,650.58,0.61767128]
[1747821142670,2.27792281,651.33,650.59,1.78443876]
[1747821142966,2.27792281,651.33,650.6,0.61767128]
[1747821143168,2.27792281,651.33,650.61,1.78443876]
[1747821143371,2.27792281,651.33,650.62,0.61767128]
[1747821143568,2.27792281,651.33,650.63,0.61767128]
[1747821143871,2.27792281,651.33,650.57,0.58746048]
[1747821144071,2.27792281,651.33,650.64,0.58746048]
[1747821145173,2.27792281,651.33,650.42,0.58746048]
[1747821145474,2.27792281,651.33,650.43,2.09126042]
[1747821145676,2.27792281,651.33,650.44,0.92476602]
[1747821145972,2.27792281,651.33,650.45,2.09131479]
[1747821146173,2.27792281,651.33,650.46,2.09131479]
[1747821146373,2.27792281,651.33,650.47,0.92482039]
[1747821146668,2.27792281,651.33,650.48,2.09131479]
[1747821146869,2.27792281,651.33,650.49,0.9248229]
[1747821147076,2.27792281,651.33,650.5,0.9248229]
[1747821147374,2.27792281,651.33,650.51,2.0913173]
[1747821147574,2.27792281,651.33,650.51,1.1664944]
[1747821147870,2.27792281,651.33,650.52,0.92483404]
[1747821148075,2.27792281,651.33,650.53,2.67878892]
[1747821148376,2.27792281,651.33,650.54,0.61766325]
[1747821148572,2.27792281,651.33,650.55,1.1664944]
[1747821148773,2.27792281,651.33,650.56,0.61766325]
[1747821149168,2.27792281,651.33,650.57,0.61766325]
[1747821149372,2.27792281,651.33,650.53,0.58746048]
[1747821149674,2.27792281,651.26,650.58,0.58746048]
[1747821151374,2.27792281,651.26,650.36,0.58746048]
[1747821151674,2.27792281,651.26,650.37,2.09294535]
[1747821151874,2.27792281,651.26,650.38,0.92497752]
[1747821152173,2.27792281,651.26,650.37,1.16796783]
[1747821152174,2.27792281,651.26,650.39,0.92497752]
[1747821152375,2.27792281,651.26,650.4,0.92497752]
[1747821152576,2.27792281,651.26,650.41,0.30720216]
[1747821152776,2.27792281,651.26,650.42,0.92499539]
[1747821152974,2.27792281,651.24,650.43,0.92499539]
[1747821153168,2.27792281,651.24,650.44,2.09296322]
[1747821153372,2.27792281,651.24,650.45,0.92499539]
[1747821153572,2.27792281,651.24,650.46,2.09296322]
[1747821153772,2.27792281,651.24,650.47,0.92499539]
[1747821153975,2.27792281,651.24,650.48,2.09296322]
[1747821154175,2.27792281,651.24,650.49,0.92499539]
[1747821154377,2.27792281,651.24,650.5,0.92499539]
[1747821154675,2.27792281,651.24,650.51,1.78576106]
[1747821154875,2.27792281,651.24,650.52,0.61779323]
[1747821155075,2.27792281,651.24,650.53,1.16796783]
[1747821155275,2.27792281,651.24,650.54,0.61779323]
[1747821155676,2.27792281,651.24,650.55,1.16796783]
[1747821155875,2.27792281,651.24,650.56,0.61779323]
[1747821156175,2.27792281,651.24,650.57,0.61781953]
[1747821156375,2.27792281,651.22,650.56,0.58746048]
[1747821156675,2.27792281,651.22,650.57,0.61781824]
[1747821156870,2.27792281,651.22,650.56,0.58746048]
[1747821157069,2.27792281,651.22,650.57,0.61776363]
[1747821157273,2.27792281,651.22,650.56,0.58746048]
[1747821157473,2.27792281,651.22,650.57,0.61770659]
[1747821157671,2.27792281,651.22,650.37,0.58746048]
[1747821157870,2.27792281,651.22,650.38,0.92491173]
[1747821158070,2.27792281,651.22,650.39,0.92491173]
[1747821158275,2.27792281,651.22,650.4,2.09283747]
[1747821158476,2.27792281,651.22,650.41,2.09283747]
[1747821158677,2.27792281,651.18,650.42,1.51237221]
[1747821158876,2.27792281,651.18,650.43,2.09283747]
[1747821159077,2.27792281,651.18,650.44,0.92491173]
[1747821159279,2.27792281,651.18,650.45,0.92491173]
[1747821159477,2.27792281,651.18,650.46,0.92491173]
[1747821159678,2.27792281,651.18,650.47,2.09290897]
[1747821159878,2.27792281,651.18,650.48,0.92498323]
[1747821160177,2.27792281,651.18,650.49,1.51244371]
[1747821160372,2.27792281,651.18,650.5,0.92498323]
[1747821160579,2.27792281,651.18,650.51,0.61778131]
[1747821160779,2.27792281,651.18,650.52,1.78570705]
[1747821160975,2.27792281,651.18,650.53,0.61778131]
[1747821161175,2.27792281,651.2,650.54,2.09285997]
[1747821161377,2.27792281,651.2,650.55,0.92493423]
[1747821161574,2.27792281,651.2,650.56,0.92493423]
[1747821161774,2.27792281,651.2,650.57,0.92493423]
[1747821161976,2.27792281,651.2,650.58,0.92493423]
[1747821162174,2.27792281,651.2,650.57,1.16792574]
[1747821162175,2.27792281,651.2,650.59,2.09285997]
[1747821162377,2.27792281,651.2,650.6,2.09284634]
[1747821162575,2.27792281,651.2,650.61,0.9249206]
[1747821162778,2.27792281,651.2,650.62,1.51238108]
[1747821162975,2.27792281,651.2,650.63,0.61778131]
[1747821163176,2.27792281,651.2,650.64,0.61778131]
[1747821163376,2.27792281,651.2,650.65,0.61778131]
[1747821163578,2.27792281,651.2,650.66,1.78570705]
[1747821163781,2.27792281,651.2,650.67,0.61732832]
[1747821163981,2.27792281,651.2,650.68,1.16792574]
[1747821164281,2.27792281,651.2,650.62,0.58746048]
[1747821164483,2.27792281,651.2,650.63,0.61732359]
[1747821164674,2.27792281,651.2,650.64,0.61732359]
[1747821164879,2.27792281,651.62,650.69,0.58746048]
[1747821165283,2.27792281,651.62,650.7,1.16692878]
[1747821165883,2.27792281,651.62,650.69,0.58746048]
[1747821166783,2.27792281,651.62,650.36,0.58746048]
[1747821166986,2.27792281,651.62,650.37,0.92431382]
[1747821167183,2.27792281,651.62,650.38,0.92431382]
[1747821167384,2.27792281,651.62,650.39,0.92431382]
[1747821167580,2.27792281,651.62,650.4,2.0912102]
[1747821167781,2.27792281,651.42,650.41,1.57654054]
[1747821167985,2.27792281,651.42,650.42,2.0912102]
[1747821168183,2.27792281,651.42,650.43,2.0912102]
[1747821168388,2.27792281,651.42,650.44,0.92429293]
[1747821168581,2.27792281,651.42,650.45,0.92429293]
[1747821168787,2.27792281,651.42,650.46,2.09118931]
[1747821169088,2.27792281,651.42,650.47,0.92429293]
[1747821169286,2.27792281,651.42,650.48,0.92429293]
[1747821169487,2.27792281,651.42,650.49,0.92429293]
[1747821169687,2.27792281,651.42,650.5,2.09118931]
[1747821169888,2.27792281,651.42,650.51,0.92429293]
[1747821170082,2.27792281,651.42,650.52,0.92425182]
[1747821170285,2.27792281,651.42,650.53,0.92425182]
[1747821170487,2.27792281,651.41,650.54,0.92425182]
[1747821170688,2.27792281,651.41,650.55,0.92425182]
[1747821170886,2.27792281,651.41,650.56,0.92425182]
[1747821171083,2.27792281,651.41,650.57,0.92425182]
[1747821171289,2.27792281,651.41,650.58,0.92425182]
[1747821171491,2.27792281,651.41,650.59,1.20455744]
[1747821171691,2.27792281,651.41,650.6,1.78399334]
[1747821171887,2.27792281,651.41,650.61,0.6170591]
[1747821172092,2.27792281,651.41,650.62,1.78395548]
[1747821172293,2.27792281,651.41,650.63,0.6170591]
[1747821172491,2.27792281,651.41,650.64,0.6170591]
[1747821172690,2.27792281,651.41,650.59,0.58746048]
[1747821172891,2.27792281,651.41,650.6,0.61704815]
[1747821173091,2.27792281,651.41,650.61,1.783381]
[1747821173291,2.27792281,651.41,650.62,1.783381]
[1747821173593,2.27792281,651.38,650.63,0.61705059]
[1747821173791,2.27792281,651.38,650.43,0.58746048]
[1747821173988,2.27792281,651.38,650.44,2.09069521]
[1747821174292,2.27792281,651.38,650.45,0.92424554]
[1747821174593,2.27792281,651.38,650.46,2.67815569]
[1747821174793,2.27792281,651.38,650.47,0.92424554]
[1747821174995,2.27792281,651.38,650.48,2.09069521]
[1747821175189,2.27792281,651.38,650.49,0.92424554]
[1747821175495,2.27792281,651.38,650.5,2.09079151]
[1747821175689,2.27792281,651.38,650.51,2.09079151]
[1747821175887,2.27792281,651.38,650.52,0.92434184]
[1747821176087,2.27792281,651.38,650.51,1.16644967]
[1747821176088,2.27792281,651.36,650.53,0.92434184]
[1747821176292,2.27792281,651.36,650.54,2.09079151]
[1747821176591,2.27792281,651.36,650.55,0.9243518]
[1747821176791,2.27792281,651.36,650.56,0.61718004]
[1747821176994,2.27792281,651.36,650.57,0.61726589]
[1747821177195,2.27792281,651.36,650.58,1.20472637]
[1747821177490,2.27792281,651.36,650.59,1.78371556]
[1747821177695,2.27792281,651.36,650.6,0.61726589]
[1747821178097,2.27792281,651.36,650.61,1.16644967]
[1747821178290,2.27792281,651.36,650.62,0.61726589]
[1747821178694,2.27792281,651.36,650.58,0.58746048]
[1747821178991,2.27792281,651.36,650.59,0.61740437]
[1747821179193,2.27792281,651.36,650.6,1.78436492]
[1747821179394,2.27792281,651.36,650.61,0.61740286]
[1747821179594,2.27792281,651.36,650.61,1.78436492]
[1747821179793,2.27792281,651.36,650.62,0.61740286]
[1747821180497,2.27792281,651.36,650.63,0.61747]
[1747821180695,2.27792281,651.36,650.4,0.58746048]
[1747821180894,2.27792281,651.36,650.41,0.92464198]
[1747821181099,2.27792281,651.36,650.42,0.92464198]
[1747821181300,2.27792281,651.36,650.43,2.09184106]
[1747821181495,2.27792281,651.36,650.44,1.51210246]
[1747821181700,2.27792281,651.36,650.45,0.92464198]
[1747821181895,2.27792281,651.36,650.46,0.92464198]
[1747821182095,2.27792281,651.36,650.47,0.92464198]
[1747821182295,2.27792281,651.36,650.48,0.92464198]
[1747821182499,2.27792281,651.36,650.46,1.16719908]
[1747821182500,2.27792281,651.36,650.49,2.09184106]
[1747821182701,2.27792281,651.36,650.5,0.92464198]
[1747821182903,2.27792281,651.36,650.51,2.09184106]
[1747821183106,2.27792281,651.36,650.52,0.92464198]
[1747821183306,0.26728419,651.83,650.53,2.0920895]
[1747821183307,2.27792281,651.33,650.53,2.0920895]
[1747821183501,2.27792281,651.33,650.54,0.92489042]
[1747821183698,2.27792281,651.33,650.55,2.0920895]
[1747821183898,2.27792281,651.33,650.56,0.92489042]
[1747821184102,2.27792281,651.33,650.57,2.0920895]
[1747821184299,2.27792281,651.33,650.58,0.61771844]
[1747821184703,2.27792281,651.33,650.59,1.16719908]
[1747821184905,2.27792281,651.33,650.6,1.20517892]
[1747821185103,2.27792281,651.33,650.61,0.61782019]
[1747821185304,2.27792281,651.33,650.62,1.78501927]
[1747821185599,2.27792281,651.33,650.63,0.61782019]
[1747821185903,2.27792281,651.33,650.64,0.61782019]
[1747821186100,2.27792281,651.33,650.65,1.16719908]
[1747821186300,2.27792281,651.3,650.66,0.61782019]
[1747821186500,2.27792281,651.3,650.67,0.61782019]
[1747821186706,2.27792281,651.3,650.64,0.58746048]
[1747821186906,2.27792281,651.3,650.65,0.61787685]
[1747821187104,2.27792281,651.3,650.66,0.61787685]
[1747821187307,2.27792281,651.3,650.67,0.61787685]
[1747821187607,2.27792281,651.3,650.67,0.58746048]
[1747821189108,2.27792281,651.27,650.47,0.65222672]
[1747821189407,2.27792281,651.27,650.48,0.92513602]
[1747821189607,2.27792281,651.27,650.49,0.92513602]
[1747821189808,2.27792281,651.27,650.5,0.92513602]
[1747821190002,2.27792281,651.27,650.51,0.92513602]
[1747821190202,2.27792281,651.27,650.52,0.92511685]
[1747821190404,2.27792281,651.27,650.53,2.09343976]
[1747821190605,2.27792281,651.27,650.54,2.09344043]
[1747821190805,2.27792281,651.27,650.55,0.92511752]
[1747821191007,2.27792281,651.27,650.56,2.09344043]
[1747821191305,2.27792281,651.27,650.57,2.09344043]
[1747821191508,2.27792281,651.27,650.58,0.92511752]
[1747821191708,2.27792281,651.27,650.59,0.92511752]
[1747821192007,0.26727084,651.83,650.6,2.09344043]
[1747821192008,2.27792281,651.26,650.6,2.09344043]
[1747821192205,2.27792281,651.26,650.61,2.09344043]
[1747821192404,2.27792281,651.26,650.62,0.61795287]
[1747821192710,2.27792281,651.26,650.63,1.16832291]
[1747821192911,2.27792281,651.26,650.64,0.61795287]
[1747821193311,2.27792281,651.26,650.65,1.75578339]
[1747821193510,2.27792281,651.26,650.66,0.61795287]
[1747821193706,2.27792281,651.26,650.67,0.61811768]
[1747821193903,2.27792281,651.26,650.68,0.61811768]
[1747821194110,2.27792281,651.26,650.65,0.58746048]
[1747821194306,2.27792281,651.26,650.66,0.61811461]
[1747821194511,2.27792281,651.26,650.67,0.61811461]
[1747821194707,2.27792281,651.26,650.68,0.61811461]
[1747821194913,2.27792281,651.26,650.65,0.58746048]
[1747821195113,2.27792281,651.25,650.67,0.58746048]
[1747821195313,2.27792281,651.25,650.68,0.61813617]
[1747821195513,2.27792281,651.25,650.67,0.58746048]
[1747821195709,2.27792281,651.25,650.68,0.61813786]
[1747821195912,2.27792281,651.25,650.67,0.58746048]
[1747821196115,2.27792281,651.25,650.68,0.61813608]
[1747821196311,2.27792281,651.25,650.69,0.58746048]
[1747821197815,2.27792281,651.21,650.51,0.65222672]
[1747821198015,2.27792281,651.21,650.52,0.92529514]
[1747821198216,2.27792281,651.21,650.53,0.92529514]
[1747821198515,2.27792281,651.21,650.54,2.09453475]
[1747821198715,2.27792281,651.21,650.55,1.51275562]
[1747821198910,2.27792281,651.21,650.56,0.92529514]
[1747821199113,2.27792281,651.21,650.57,2.09453178]
[1747821199315,2.27792281,651.21,650.58,0.92529217]
[1747821199514,2.27792281,651.21,650.59,2.09453178]
[1747821199714,2.27792281,651.21,650.6,0.92529217]
[1747821199915,2.27792281,651.21,650.61,0.92529217]
[1747821200117,2.27792281,651.21,650.62,1.78736943]
[1747821200316,2.27792281,651.21,650.63,0.61812982]
[1747821200817,2.27792281,651.21,650.64,0.6181317]
[1747821201017,2.27792281,651.21,650.65,0.6181317]
[1747821201317,2.27792281,651.21,650.66,1.78737131]
[1747821201517,2.27792281,651.21,650.67,0.6181317]
[1747821201918,2.27792281,651.21,650.68,0.6181317]
[1747821202217,2.27792281,651.21,650.69,0.58746048]
[1747821204420,2.27792281,651.2,650.52,1.2396872]
[1747821204627,2.27792281,651.2,650.53,0.92543373]
[1747821204918,2.27792281,651.2,650.54,0.92543373]
[1747821205219,2.27792281,651.2,650.55,2.09448104]
[1747821205420,2.27792281,651.2,650.56,0.92543373]
[1747821205722,2.27792281,651.2,650.57,0.92543373]
[1747821206020,2.27792281,651.2,650.58,2.09430116]
[1747821206218,2.27792281,651.2,650.59,2.09430116]
[1747821206422,2.27792281,651.2,650.6,0.92525385]
[1747821206721,2.27792281,651.2,650.61,0.92525385]
[1747821206914,2.27792281,651.2,650.62,0.92525385]
[1747821207116,2.27792281,651.2,650.63,2.09430116]
[1747821207320,2.27792281,651.37,650.64,0.92525385]
[1747821207517,2.27792281,651.37,650.65,2.09430116]
[1747821207720,2.27792281,651.37,650.66,0.61805615]
[1747821207921,2.27792281,651.37,650.67,1.78710346]
[1747821208124,2.27792281,651.37,650.68,0.61805615]
[1747821208423,2.27792281,651.37,650.69,1.16904731]
[1747821208620,2.27792281,651.37,650.7,0.61805615]
[1747821208819,2.27792281,651.37,650.7,1.20551663]
[1747821209020,2.27792281,651.37,650.71,0.61805615]
[1747821209722,2.27792281,651.37,650.72,1.16829143]
[1747821209926,2.27792281,651.4,650.73,0.61805615]
[1747821210127,2.27792281,651.4,650.74,0.61805615]
[1747821210325,2.27792281,651.4,650.75,0.61805615]
[1747821210524,2.27792281,651.4,650.76,0.61805615]
[1747821210724,2.27792281,651.4,650.77,0.61805615]
[1747821210919,2.27792281,651.4,650.76,1.16829143]
[1747821211122,2.27792281,651.4,650.77,1.20535921]
[1747821211324,2.27792281,651.4,650.77,1.75575191]
[1747821211529,2.27792281,651.4,650.78,0.61786404]
[1747821211823,2.27792281,651.4,650.77,0.58746048]
[1747821212425,2.27792281,651.4,650.78,0.61786586]
[1747821212626,2.27792281,651.42,650.55,0.65222672]
[1747821212826,2.27792281,651.42,650.56,0.92497047]
[1747821213126,2.27792281,651.42,650.57,2.09341366]
[1747821213326,2.27792281,651.42,650.58,0.92497029]
[1747821213528,2.27792281,651.42,650.59,2.68087414]
[1747821213826,2.27792281,651.42,650.6,0.92497029]
[1747821214027,2.27792281,651.42,650.61,0.92497029]
[1747821214325,2.27792281,651.42,650.62,2.09341366]
[1747821214523,2.27792281,651.42,650.63,0.92497006]
[1747821214727,2.27792281,651.42,650.64,2.09341343]
[1747821214921,2.27792281,651.42,650.65,0.92497006]
[1747821215122,2.27792281,651.42,650.66,0.92497006]
[1747821215322,2.27792281,651.42,650.67,2.09341343]
[1747821215522,2.27792281,651.44,650.68,0.92497006]
[1747821215728,2.27792281,651.44,650.69,0.92493056]
[1747821216028,2.27792281,651.44,650.7,0.92493056]
[1747821216228,2.27792281,651.44,650.66,0.58746048]
[1747821216229,5.34721115,651.89,650.42,0.26724108]
[1747821216429,0.26721851,652.01,650.42,0.26724108]
[1747821220533,0.9930774,652.92,649.33,0.48697157]
[1747821220737,0.9930774,653.67,648.97,0.48697157]
[1747821220934,0.26719491,652.06,650.42,0.26719491]
[1747821221135,0.9930774,653.67,648.97,0.48697157]
[1747821221935,0.26717953,653.66,648.98,0.26717953]
[1747821223535,0.9930774,653.71,648.93,0.48697157]
[1747821223729,0.9930774,653.71,648.98,0.26707905]
[1747821223931,0.26707905,653.65,648.98,0.26707905]
[1747821226134,0.26707905,653.65,649.19,0.48697157]
[1747821226539,0.9930774,654.24,649.19,0.48697157]
[1747821226739,0.26701757,653.64,649.19,0.48697157]
[1747821227039,0.9930774,654.24,649.19,0.48697157]
[1747821227840,0.26700938,654.23,649.19,0.48697157]
[1747821228536,0.26700938,654.23,649.06,0.26701757]
[1747821229535,0.9930774,654.5,648.85,0.48697157]
[1747821229839,0.26700631,654.22,649.06,0.26700631]
[1747821230034,0.9930774,654.5,648.85,0.48697157]
[1747821230840,0.26703192,654.49,648.86,0.26703192]
[1747821238545,0.9930774,654.73,648.52,0.48697157]
[1747821238740,0.26702884,654.48,648.86,0.26702884]
[1747821239046,0.9930774,654.73,648.52,0.48697157]
[1747821239841,0.26705651,654.72,648.53,0.26705651]
[1747821240846,0.9930774,654.71,648.53,0.26705651]
[1747821243446,0.9930774,654.71,648.54,0.59261052]
[1747821243644,0.9930774,654.71,648.55,0.61132745]
[1747821243844,0.9930774,654.3,649.07,1.16089641]
[1747821244042,0.9930774,654.3,649.08,0.91829126]
[1747821244247,0.9930774,654.3,649.09,0.91829126]
[1747821244447,0.9930774,654.3,649.1,0.91827779]
[1747821244649,0.9930774,654.3,649.11,2.0791742]
[1747821244845,0.26703909,654.29,649.12,0.91827779]
[1747821245042,0.26703909,654.29,649.13,0.91827779]
[1747821245246,0.26703909,654.29,649.14,2.0791742]
[1747821245443,0.26703909,654.29,649.15,0.91827779]
[1747821245647,0.26703909,654.29,649.16,0.91827779]
[1747821245848,0.26703909,654.29,649.17,2.0791742]
[1747821246046,0.26703909,654.29,649.18,0.91827779]
[1747821246246,0.26703909,654.29,649.19,0.91827779]
[1747821246444,0.26703909,654.29,649.2,0.91827779]
[1747821246644,0.26703909,654.29,649.21,2.0791742]
[1747821246847,0.26703909,654.29,649.22,0.91827779]
[1747821247148,2.27564969,652.23,650.65,0.64711477]
[1747821247348,2.27564969,652.23,650.66,0.91827779]
[1747821247548,2.27564969,652.23,650.67,0.91827779]
[1747821247748,2.27564969,652.23,650.68,0.91827779]
[1747821247954,2.27564969,652.23,650.69,2.07913981]
[1747821248146,2.27564969,652.23,650.7,2.07913981]
[1747821248346,2.27564969,652.23,650.71,1.51085392]
[1747821248546,2.27564969,652.23,650.72,0.9182434]
[1747821248752,2.27564969,652.23,650.73,0.9182434]
[1747821248951,2.27564969,652.23,650.74,0.9182434]
[1747821249151,2.27564969,652.23,650.75,2.07913981]
[1747821249352,2.27564969,652.23,650.76,0.9182434]
[1747821249551,2.27564969,652.23,650.77,0.9182434]
[1747821249753,2.27564969,652.23,650.78,0.9179942]
[1747821249952,2.27564969,652.23,650.79,2.07889061]
[1747821250151,2.27564969,652.23,650.8,0.9179942]
[1747821250352,0.26707085,652.34,650.81,0.9179942]
[1747821250552,2.27564969,652.42,650.82,0.9179942]
[1747821250851,2.27564969,652.42,650.83,0.9179942]
[1747821251051,2.27564969,652.42,650.84,2.07889061]
[1747821251247,2.27564969,652.42,650.85,0.9179942]
[1747821251448,2.27564969,652.42,650.86,0.9179942]
[1747821251647,2.27564969,652.42,650.87,1.51060472]
[1747821251846,0.26702679,652.41,650.88,0.9179942]
[1747821252050,0.26702679,652.41,650.89,2.07889061]
[1747821252253,0.26702679,652.41,650.9,0.9179942]
[1747821252452,0.26702679,652.41,650.91,0.9179942]
[1747821252753,0.26702679,652.41,650.92,2.67150113]
[1747821252946,0.26702679,652.41,650.93,0.9179942]
[1747821253151,0.26702679,652.41,650.94,0.91796327]
[1747821253351,0.26702679,652.41,650.95,0.91796327]
[1747821253547,0.26702679,652.41,650.92,0.59261052]
[1747821253548,2.27564969,652.43,650.96,2.07885968]
[1747821253753,2.27564969,652.43,650.97,0.91796327]
[1747821253946,2.27564969,652.43,650.98,2.07885968]
[1747821254151,2.27564969,652.43,650.99,0.91796327]
[1747821254351,2.27564969,652.43,651.0,0.91796327]
[1747821254554,2.27564969,652.43,651.01,0.91796327]
[1747821254856,2.27564969,652.43,651.02,0.91793008]
[1747821255157,2.27564969,652.43,651.03,0.91793008]
[1747821255356,2.27564969,652.43,651.04,2.07882649]
[1747821255554,2.27564969,652.43,651.05,0.91793008]
[1747821255751,2.27564969,652.85,651.06,0.91793008]
[1747821255951,2.27564969,652.85,651.07,2.07882649]
[1747821256256,0.26693667,652.84,651.08,2.07882649]
[1747821256455,0.26693667,652.84,651.09,0.91793008]
[1747821256651,0.26693667,652.84,651.1,1.5105406]
[1747821256855,0.26693667,652.84,651.11,0.30686303]
[1747821257050,0.26693667,652.84,651.12,0.30686303]
[1747821257355,0.26693667,652.84,651.12,1.16089641]
[1747821257555,2.27564969,652.8,651.13,0.59261052]
[1747821257750,2.27564969,652.8,651.13,1.75350693]
[1747821257954,2.27564969,652.8,651.14,1.16089641]
[1747821258658,2.27564969,652.8,651.15,1.16089641]
[1747821258853,2.27564969,652.8,651.16,0.59261052]
[1747821259060,2.27564969,652.8,651.17,1.16089641]
[1747821259458,2.27564969,652.8,651.18,1.16089641]
[1747821259959,0.2669336,652.79,651.18,1.16089641]
[1747821260158,0.2669336,652.79,651.19,1.16089641]
[1747821260353,0.2669336,652.79,651.16,0.59261052]
[1747821260558,2.27564969,652.78,651.19,0.59261052]
[1747821261961,2.27564969,652.78,650.77,0.59261052]
[1747821262157,2.27564969,652.78,650.78,2.07335993]
[1747821262356,2.27564969,652.78,650.79,0.91806415]
[1747821262555,2.27564969,652.78,650.8,0.91806415]
[1747821262759,2.27564969,652.78,650.81,0.91806415]
[1747821262955,2.27564969,652.78,650.82,0.91806415]
[1747821263156,2.27564969,652.78,650.83,2.07335993]
[1747821263359,2.27564969,652.78,650.84,0.91806415]
[1747821263560,2.27564969,652.78,650.85,0.91806415]
[1747821263760,2.27564969,652.78,650.86,2.07335993]
[1747821263960,0.26697046,652.77,650.87,0.91806415]
[1747821264161,0.26697046,652.77,650.92,0.64711477]
[1747821264162,2.27564969,652.38,650.92,0.64711477]
[1747821264460,2.27564969,652.38,650.93,2.07335993]
[1747821264657,2.27564969,652.38,650.94,2.07335993]
[1747821264863,2.27564969,652.38,650.95,0.91806415]
[1747821265061,2.27564969,652.38,650.96,1.51067467]
[1747821265263,2.27564969,652.38,650.97,2.07335993]
[1747821265562,2.27564969,652.38,650.98,0.91806415]
[1747821265762,2.27564969,652.38,650.99,2.07335993]
[1747821266062,2.27564969,652.38,651.0,2.07335993]
[1747821266258,0.9930774,653.84,651.01,1.51067467]
[1747821266259,2.27564969,652.21,651.01,1.51067467]
[1747821266465,2.27564969,652.21,651.02,2.07335993]
[1747821266663,2.27564969,652.21,651.03,0.91806415]
[1747821266863,2.27564969,652.21,651.04,0.91806415]
[1747821267066,2.27564969,652.21,651.05,0.91806415]
[1747821267261,2.27564969,652.21,651.06,2.07335993]
[1747821267567,2.27564969,652.21,651.07,1.51067467]
[1747821267768,2.27564969,652.21,651.08,0.91806415]
[1747821267967,2.27564969,652.21,651.09,0.91806415]
[1747821268167,2.27564969,652.21,651.1,1.76650162]
[1747821268467,2.27564969,652.21,651.11,1.76650162]
[1747821268665,2.27564969,652.21,651.12,0.61263224]
[1747821268865,2.27564969,652.21,651.11,1.15529578]
[1747821269063,2.27564969,652.25,651.12,1.20524401]
[1747821269368,2.27564969,652.25,651.13,0.61282169]
[1747821269567,2.27564969,652.25,651.13,1.15529578]
[1747821270261,2.27564969,652.25,651.14,0.59261052]
[1747821271368,2.27564969,652.21,650.92,0.64711477]
[1747821271570,2.27564969,652.21,650.93,2.07951435]
[1747821271869,2.27564969,652.21,650.94,0.92025442]
[1747821272069,2.27564969,652.21,650.95,2.07953503]
[1747821272364,2.27564969,652.21,650.96,0.9202751]
[1747821272568,2.27564969,652.21,650.97,1.51288562]
[1747821272769,2.27564969,652.21,650.98,0.9202751]
[1747821272967,2.27564969,652.21,650.99,0.9202751]
[1747821273162,2.27564969,652.21,651.0,0.9202751]
[1747821273366,2.27564969,652.21,651.01,2.07953503]
[1747821273567,2.27564969,652.21,651.02,0.9202751]
[1747821273763,2.27564969,652.21,651.03,0.9202751]
[1747821274067,2.27564969,652.21,651.04,0.92027464]
[1747821274268,2.27564969,652.21,651.05,2.07953457]
[1747821274470,2.27564969,652.13,651.06,2.07953457]
[1747821274668,2.27564969,652.13,651.07,0.92027464]
[1747821274968,2.27564969,652.13,651.08,2.07953457]
[1747821275268,2.27564969,652.13,651.09,2.07953457]
[1747821275468,2.27564969,652.13,651.1,0.92027464]
[1747821275669,2.27564969,652.13,651.11,2.07953457]
[1747821275869,2.27564969,652.13,651.12,0.92027464]
[1747821276070,2.27564969,652.13,651.13,0.6134033]
[1747821276371,2.27564969,652.13,651.14,2.07953499]
[1747821276569,2.27564969,652.13,651.15,0.92027506]
[1747821276770,2.27564969,652.13,651.16,0.6134033]
[1747821276966,2.27564969,652.13,651.17,1.77266323]
[1747821277171,2.27564969,652.13,651.18,0.6134033]
[1747821277371,2.27564969,652.13,651.19,1.16319246]